bitfinex/quotes_ETHUSD_20240731
["timestamp","ask_amount","ask_price","bid_price","bid_amount"]
[1722410981376,0.55,3332.2,3331.7,35.0]
[1722410981716,4.58976775,3332.5,3331.7,39.15401288]
[1722410981924,4.58976775,3332.5,3331.7,39.1064]
[1722410981925,7.59057775,3332.5,3331.7,39.1064]
[1722410982119,7.59057775,3332.5,3331.7,38.0014]
[1722410982294,3.00085,3332.4,3331.7,38.0014]
[1722410982677,5.20211775,3332.4,3331.7,38.0014]
[1722410983519,3.00085,3332.4,3331.7,38.0014]
[1722410984548,3.00085,3332.4,3331.7,35.0]
[1722410984549,4.17035795,3332.4,3331.7,35.0]
[1722410984726,6.37041749,3332.4,3331.7,35.0]
[1722410984925,6.37041749,3332.4,3331.5,3.00163]
[1722410984926,7.47541749,3332.4,3331.5,3.00163]
[1722410985268,3.00094,3332.3,3331.5,3.00163]
[1722410985420,0.32403128,3332.2,3331.6,35.0]
[1722410985627,3.32510128,3332.2,3331.6,35.0]
[1722410985839,3.00112,3332.1,3331.6,35.0]
[1722410986007,3.00121,3332.0,3331.6,35.0]
[1722410986850,5.34471,3332.0,3331.6,35.0]
[1722410987051,3.0013,3331.9,3331.6,35.0]
[1722410987510,3.0013,3331.9,3331.2,1.105]
[1722410988037,3.0013,3331.9,3331.3,35.0]
[1722410989648,3.00149,3331.7,3331.3,35.0]
[1722410989811,3.00149,3331.7,3331.0,1.105]
[1722410990014,3.00149,3331.7,3330.9,2.4041]
[1722410990015,0.55,3331.6,3330.9,2.4041]
[1722410990320,0.55,3331.6,3331.0,35.0]
[1722410990321,3.0017,3331.5,3331.0,35.0]
[1722410990942,3.0017,3331.5,3330.5,3.00255]
[1722410990943,3.00192,3331.2,3330.6,2.3304]
[1722410991149,1.105,3331.2,3330.6,2.3304]
[1722410991452,3.00206,3331.1,3330.6,35.0]
[1722410991959,3.00206,3331.1,3330.4,3.364]
[1722410992137,3.00206,3331.1,3330.4,4.000669]
[1722410992336,3.00206,3331.1,3330.4,39.000669]
[1722410992977,3.00206,3331.1,3330.4,37.895669]
[1722410993679,3.00206,3331.1,3330.4,40.898269]
[1722410994989,2.271,3331.0,3330.3,3.00271]
[1722410995790,3.00189,3331.3,3330.5,3.00249]
[1722410996263,3.00192,3331.2,3330.5,3.00249]
[1722410997080,3.00192,3331.2,3330.4,3.441]
[1722410997854,3.00192,3331.2,3330.3,6.00535]
[1722410997855,5.43972,3331.1,3330.3,3.00266]
[1722410999978,5.43972,3331.1,3330.2,1.105]
[1722410999979,1.105,3331.0,3330.0,8.4074]
[1722411000151,1.105,3331.0,3330.0,7.3024]
[1722411000152,3.00245,3330.7,3330.0,7.3024]
[1722411000357,2.295,3330.6,3330.0,5.0]
[1722411001054,3.00264,3330.4,3330.0,5.0]
[1722411001257,3.00281,3330.3,3330.0,5.0]
[1722411002098,3.00291,3330.1,3330.0,5.0]
[1722411002406,5.39901,3330.1,3330.0,5.0]
[1722411002567,5.94901,3330.1,3330.0,5.0]
[1722411002753,6.954693,3330.1,3330.0,5.0]
[1722411003094,1.555683,3330.1,3330.0,5.0]
[1722411003245,0.55,3330.1,3330.0,5.0]
[1722411003447,3.00264,3330.4,3330.0,5.0]
[1722411003701,6.55079,3330.6,3330.0,5.0]
[1722411003997,3.0,3331.5,3330.1,3.00282]
[1722411003998,2.4433,3330.9,3330.1,3.00282]
[1722411004162,5.44552,3330.9,3330.1,0.06005148]
[1722411004352,3.002,3331.2,3330.2,3.00276]
[1722411004549,4.10701,3331.1,3330.2,3.00276]
[1722411004842,4.10701,3331.1,3330.3,3.00272]
[1722411005081,0.05232517,3332.4,3330.3,3.00272]
[1722411005082,3.00154,3331.7,3330.6,1.105]
[1722411005292,3.4245,3331.6,3330.6,1.105]
[1722411005449,3.4245,3331.6,3330.8,3.00227]
[1722411005450,6.42607,3331.6,3330.8,3.00227]
[1722411005647,6.42607,3331.6,3330.8,4.10727]
[1722411005947,6.42607,3331.6,3330.1,3.00285]
[1722411005948,3.00127,3332.0,3331.2,4.10687]
[1722411006182,3.00129,3331.9,3331.2,1.105]
[1722411006380,0.300129,3331.8,3331.2,1.105]
[1722411006907,0.300129,3331.8,3331.1,3.00194]
[1722411008047,3.00148,3331.7,3330.9,5.28946]
[1722411008249,3.301509,3331.8,3330.9,2.2873]
[1722411008587,3.00165,3331.5,3330.7,3.00235]
[1722411008890,2.442,3331.6,3330.6,3.00245]
[1722411008891,3.00174,3331.4,3330.6,3.00245]
[1722411009251,0.2442,3331.5,3330.9,3.00218]
[1722411009479,3.00147,3331.7,3331.0,3.00209]
[1722411009683,5.29059,3331.9,3331.1,5.45412]
[1722411010026,0.55,3331.8,3331.2,3.00191]
[1722411010207,3.55146,3331.8,3331.1,2.4522]
[1722411010527,3.00147,3331.7,3330.8,5.45245]
[1722411010730,3.55141,3331.8,3330.9,3.00218]
[1722411010893,0.4380582,3331.7,3330.9,3.00218]
[1722411011394,3.00156,3331.6,3330.8,2.4502]
[1722411011607,3.00156,3331.6,3330.8,5.45247]
[1722411012111,3.00156,3331.6,3330.8,2.4502]
[1722411012293,3.00174,3331.4,3330.8,2.4502]
[1722411012486,3.00156,3331.6,3330.8,2.4502]
[1722411012686,0.526116,3331.5,3330.8,2.4502]
[1722411013128,0.526116,3331.5,3330.5,5.27414]
[1722411013129,3.55176,3331.4,3330.5,5.27414]
[1722411013357,3.00183,3331.3,3330.5,5.27414]
[1722411013503,0.55,3331.4,3330.6,3.00244]
[1722411014124,3.55174,3331.4,3330.6,3.00244]
[1722411014753,0.55,3331.4,3330.7,3.00235]
[1722411015111,0.55,3331.4,3330.8,3.00219]
[1722411015365,3.00139,3331.8,3331.0,2.2965]
[1722411015543,2.3805,3332.3,3331.1,3.002]
[1722411015729,2.3805,3332.3,3331.2,0.06002957]
[1722411016269,2.3805,3332.3,3331.4,3.00173]
[1722411016270,3.00108,3332.2,3331.4,3.00173]
[1722411016478,3.539221,3332.2,3331.4,3.00173]
[1722411016755,3.00111,3332.1,3331.2,3.06189957]
[1722411016956,3.00111,3332.1,3331.3,0.06002938]
[1722411017156,3.0013,3331.9,3331.0,2.2965]
[1722411017362,3.00122,3332.0,3331.0,5.29854]
[1722411017581,3.00156,3331.6,3331.0,2.2965]
[1722411017716,3.00175,3331.4,3330.7,2.4655]
[1722411017918,3.00193,3331.2,3330.4,6.00262]
[1722411018117,3.00193,3331.2,3330.3,2.4655]
[1722411018118,3.00212,3331.0,3330.3,2.4655]
[1722411018378,3.00212,3331.0,3329.7,2.4655]
[1722411018379,3.0022,3330.9,3329.7,2.4655]
[1722411018669,3.00247,3330.6,3329.9,3.00309]
[1722411018843,2.2844,3331.0,3329.7,5.46871]
[1722411018844,3.00255,3330.5,3329.7,5.46871]
[1722411019160,3.00265,3330.4,3329.7,5.46871]
[1722411019480,3.00265,3330.4,3329.4,3.00352]
[1722411019662,3.00265,3330.4,3329.6,3.0033]
[1722411020549,3.00265,3330.4,3329.7,3.00327]
[1722411020962,3.00248,3330.6,3329.7,3.00327]
[1722411021132,0.850248,3330.5,3329.8,3.00318]
[1722411021474,0.55,3330.5,3329.9,3.00308]
[1722411021665,3.0023,3330.8,3329.3,2.4655]
[1722411021666,0.55,3330.7,3329.4,0.06005742]
[1722411021859,0.55,3330.7,3329.9,3.00302]
[1722411022650,0.828881,3330.8,3330.2,3.00276]
[1722411022853,3.0019,3331.3,3330.3,3.00269]
[1722411023038,3.00207,3331.1,3330.3,3.00269]
[1722411023237,2.4372,3331.4,3330.4,0.06005131]
[1722411023479,0.50364415,3331.3,3330.4,0.06004673]
[1722411023789,3.00211,3331.0,3330.4,0.06004673]
[1722411023929,3.00211,3331.0,3330.2,3.00281]
[1722411024134,3.602519,3331.0,3330.4,0.06004532]
[1722411025564,3.602519,3331.0,3330.2,3.00281]
[1722411026780,3.602519,3331.0,3330.3,3.00273]
[1722411026987,0.600409,3331.0,3329.8,3.00316]
[1722411027289,3.00232,3330.8,3329.9,6.00303]
[1722411027450,3.00232,3330.8,3330.0,3.00299]
[1722411027962,3.00239,3330.7,3329.9,3.0]
[1722411028138,3.00246,3330.6,3329.9,3.0]
[1722411028977,3.00246,3330.6,3329.8,3.00311]
[1722411029137,3.00256,3330.5,3329.8,3.00311]
[1722411029640,3.00256,3330.5,3329.6,3.00333]
[1722411029845,3.00265,3330.4,3329.6,3.00333]
[1722411030395,3.00256,3330.5,3329.6,3.00333]
[1722411030547,3.00256,3330.5,3329.7,3.00324]
[1722411031187,3.00264,3330.4,3329.7,3.00324]
[1722411032785,3.00264,3330.4,3329.5,3.00338]
[1722411033282,3.00273,3330.3,3329.5,3.00338]
[1722411033691,3.00297,3330.1,3329.3,3.3009]
[1722411033842,3.00297,3330.1,3329.3,3.0]
[1722411034040,3.00297,3330.1,3329.0,3.00387]
[1722411034041,3.00311,3329.9,3329.1,3.00381]
[1722411034538,3.00311,3329.9,3329.2,3.00372]
[1722411035372,3.00287,3330.2,3329.4,3.00347]
[1722411035590,0.300287,3330.1,3329.5,3.00345]
[1722411035739,0.300287,3330.1,3329.4,3.00353]
[1722411035966,0.300287,3330.1,3329.2,3.00372]
[1722411035967,3.003,3330.0,3329.3,3.00362]
[1722411036167,3.003,3330.0,3329.2,3.00372]
[1722411036168,3.00311,3329.9,3329.0,3.00389]
[1722411036496,3.55324,3329.8,3329.1,3.0038]
[1722411036664,0.55,3329.8,3329.1,3.0038]
[1722411036866,0.55,3329.9,3329.1,3.0038]
[1722411037107,0.605076,3329.8,3329.1,3.0038]
[1722411037310,3.00306,3330.0,3329.3,3.00363]
[1722411037482,3.00306,3330.0,3329.1,3.0038]
[1722411037666,3.00311,3329.9,3329.1,3.0038]
[1722411037869,0.600617,3329.8,3329.1,3.0038]
[1722411038443,0.600617,3329.8,3327.8,5.15328421]
[1722411038444,3.00356,3329.4,3328.5,0.3009]
[1722411038602,3.00356,3329.4,3328.0,5.40626]
[1722411038603,3.00374,3329.2,3328.0,2.4015]
[1722411038799,3.00374,3329.2,3328.4,3.00443]
[1722411040018,3.659468,3329.2,3328.4,3.00443]
[1722411040222,3.00391,3329.0,3328.2,3.00462]
[1722411040888,3.659468,3329.2,3328.3,3.00453]
[1722411041091,0.55,3329.1,3328.5,3.00435]
[1722411041991,0.9709358,3329.1,3328.3,3.00453]
[1722411042218,0.55,3329.1,3328.1,3.00469]
[1722411042425,3.00364,3329.3,3328.0,2.4015]
[1722411042426,0.55,3329.2,3328.2,6.00462]
[1722411042627,5.4618,3329.0,3328.2,3.00462]
[1722411042829,0.55,3329.2,3328.5,3.00434]
[1722411042996,0.55,3329.3,3328.5,3.00434]
[1722411043345,5.46149,3329.4,3328.2,0.841091]
[1722411043346,2.4579,3329.4,3328.6,0.06008417]
[1722411043567,2.4579,3329.4,3328.8,3.00399]
[1722411044123,2.4579,3329.4,3328.0,5.0545]
[1722411044327,3.00373,3329.2,3328.4,3.00438]
[1722411045029,0.55,3329.1,3328.4,3.00438]
[1722411045331,0.55,3329.1,3328.5,3.00434]
[1722411045526,0.55,3329.2,3328.5,3.00434]
[1722411045784,0.55,3329.2,3328.3,3.0045]
[1722411045785,0.55,3329.2,3328.6,3.00426]
[1722411045985,0.24579,3329.3,3328.7,3.00417]
[1722411046268,2.4579,3329.4,3328.7,3.0041]
[1722411046433,0.55,3329.3,3328.7,3.0041]
[1722411048275,0.55,3329.3,3328.1,6.00467]
[1722411048276,0.55,3329.3,3328.8,3.00408]
[1722411048478,3.00309,3329.9,3328.8,3.00408]
[1722411048479,2.4665,3329.8,3329.1,3.00375]
[1722411049359,3.00283,3330.2,3329.2,3.00371]
[1722411049556,2.3655,3330.5,3329.2,3.00371]
[1722411049557,3.303193,3330.1,3329.3,3.00357]
[1722411049760,3.00291,3330.1,3329.3,3.00357]
[1722411050138,3.00273,3330.3,3329.3,3.00362]
[1722411050436,5.36808,3330.5,3329.3,3.00362]
[1722411050437,3.00291,3330.1,3329.3,3.00362]
[1722411050837,0.55,3330.0,3329.3,3.00362]
[1722411051448,3.553,3330.0,3329.2,0.06006936]
[1722411051647,0.55,3330.0,3329.1,3.00375]
[1722411051887,3.00315,3329.9,3329.1,35.0]
[1722411052197,0.55,3330.1,3329.2,3.06378939]
[1722411052365,3.55294,3330.1,3329.3,3.00356]
[1722411053075,3.00301,3330.0,3329.3,3.00356]
[1722411053391,0.355301,3329.9,3329.3,3.00356]
[1722411054817,0.355301,3329.9,3329.2,3.00369]
[1722411055713,3.358401,3329.9,3329.1,35.0]
[1722411055917,3.358401,3329.9,3329.1,38.0038]
[1722411056423,3.00334,3329.7,3328.9,3.00398]
[1722411056633,0.55,3329.6,3328.9,3.00398]
[1722411056996,0.55,3329.6,3329.1,3.0038]
[1722411057197,0.55,3329.7,3329.1,3.0038]
[1722411057526,0.99883811,3329.7,3328.9,3.00393]
[1722411057836,0.99883811,3329.7,3329.0,3.00389]
[1722411058392,0.99883811,3329.7,3329.1,3.0038]
[1722411058802,2.4414,3330.0,3329.3,3.00359]
[1722411059003,0.55,3329.9,3329.3,3.00359]
[1722411059524,3.55309,3329.9,3329.1,3.06387417]
[1722411059687,3.55309,3329.9,3329.1,3.0038]
[1722411059896,3.55309,3329.9,3329.2,3.00371]
[1722411060111,0.55,3329.9,3329.3,3.0036]
[1722411060311,0.55,3329.9,3329.5,3.00345]
[1722411060511,2.4414,3330.0,3329.2,3.06377983]
[1722411060714,2.4414,3330.0,3329.4,3.00354]
[1722411061485,2.4414,3330.0,3329.2,0.06006983]
[1722411061686,5.335,3330.5,3329.7,3.00319]
[1722411062236,0.55,3330.4,3329.7,3.00319]
[1722411062995,0.55,3330.4,3329.8,3.00317]
[1722411063616,0.55,3330.4,3329.9,3.00308]
[1722411063903,0.55,3330.4,3329.7,3.0032]
[1722411064209,1.138486,3330.4,3329.7,3.0032]
[1722411064413,1.138486,3330.4,3329.1,2.2567]
[1722411064414,2.3324,3330.5,3329.9,3.00303]
[1722411064835,2.3324,3330.5,3329.7,3.00321]
[1722411065039,2.3324,3330.5,3329.9,3.00308]
[1722411065248,2.56564,3330.5,3329.9,3.00308]
[1722411065637,2.56564,3330.5,3329.7,6.00641]
[1722411065973,2.56564,3330.5,3329.8,3.00318]
[1722411066152,3.0027,3330.4,3329.5,3.00342]
[1722411066331,3.559516,3330.4,3329.5,3.00342]
[1722411066505,3.00277,3330.3,3329.5,3.00342]
[1722411066705,3.00288,3330.2,3329.4,3.00354]
[1722411066900,3.6591266,3330.2,3329.4,3.00354]
[1722411067103,3.6591266,3330.2,3328.8,35.0]
[1722411067104,3.00301,3330.0,3329.2,3.00371]
[1722411067721,3.00309,3329.9,3329.2,3.00371]
[1722411068262,3.00318,3329.8,3329.0,3.00387]
[1722411068562,0.300309,3329.8,3329.1,3.0038]
[1722411068851,0.300309,3329.8,3328.9,6.00392]
[1722411069058,3.5533,3329.7,3329.0,3.00389]
[1722411069521,3.00337,3329.6,3328.9,3.0]
[1722411069768,2.2633,3329.5,3328.9,3.0]
[1722411069967,5.26677,3329.5,3328.8,38.00405]
[1722411070278,3.00355,3329.4,3328.8,35.0]
[1722411070480,3.51111033,3329.4,3328.8,35.0]
[1722411070787,3.51111033,3329.4,3328.4,3.30527]
[1722411070976,3.51111033,3329.4,3328.6,3.00419]
[1722411071187,3.51111033,3329.4,3328.7,3.0]
[1722411071366,3.51111033,3329.4,3328.7,38.0]
[1722411071966,3.51111033,3329.4,3328.7,41.00416]
[1722411072694,3.51111033,3329.4,3328.7,38.0]
[1722411072844,3.58112103,3329.3,3328.7,35.0]
[1722411073055,0.55,3329.2,3328.4,3.00442]
[1722411073297,0.55,3329.2,3328.5,3.00434]
[1722411073525,0.9631001,3329.2,3328.6,3.00426]
[1722411073734,0.9631001,3329.2,3328.4,38.00437]
[1722411074083,0.9631001,3329.2,3328.5,3.00434]
[1722411074288,3.9668301,3329.2,3328.5,3.00434]
[1722411074724,3.9668301,3329.2,3328.4,35.0]
[1722411075431,3.9668301,3329.2,3328.4,38.00438]
[1722411076287,0.45442711,3329.1,3328.5,3.00434]
[1722411076491,3.00355,3329.4,3328.5,3.00434]
[1722411076721,2.2633,3329.5,3328.5,3.00432]
[1722411077133,2.2633,3329.5,3328.4,35.0]
[1722411077134,3.00362,3329.4,3328.6,3.00426]
[1722411077331,0.526673,3329.4,3328.7,0.06008168]
[1722411077505,0.526673,3329.4,3328.9,3.00398]
[1722411077705,2.2633,3329.5,3328.9,3.00398]
[1722411077906,2.2633,3329.5,3328.7,3.00411]
[1722411078104,5.26675,3329.5,3328.8,3.00407]
[1722411078843,2.2633,3329.5,3328.9,3.00399]
[1722411079431,2.789964,3329.5,3328.9,3.00399]
[1722411079741,2.2633,3329.5,3328.8,3.00407]
[1722411079966,2.2633,3329.5,3328.9,3.00399]
[1722411081016,2.2633,3329.5,3328.7,3.00417]
[1722411081017,5.26675,3329.5,3328.7,3.00417]
[1722411081221,0.526675,3329.4,3328.7,3.00417]
[1722411081619,0.526675,3329.4,3328.8,35.0]
[1722411081848,0.526675,3329.4,3328.8,38.00408]
[1722411082822,5.26675,3329.5,3328.8,35.0]
[1722411083566,5.26675,3329.5,3328.8,38.00405]
[1722411086668,5.26675,3329.5,3328.8,3.00405]
[1722411087363,5.26675,3329.5,3328.8,38.00405]
[1722411087536,0.526675,3329.4,3328.8,38.00405]
[1722411087922,3.530225,3329.4,3328.8,35.0]
[1722411088537,3.530225,3329.4,3328.6,3.00423]
[1722411088736,3.530225,3329.4,3328.7,3.00417]
[1722411089281,3.530225,3329.4,3328.7,38.00417]
[1722411090698,3.530225,3329.4,3328.2,3.00461]
[1722411090699,2.3459,3329.2,3328.2,3.00461]
[1722411091065,3.00405,3328.9,3328.2,38.00461]
[1722411091585,3.00405,3328.9,3328.2,35.0]
[1722411092098,3.0041,3328.8,3328.2,35.0]
[1722411092309,3.55417,3328.7,3327.8,5.45505]
[1722411092472,3.55417,3328.7,3328.0,3.00475]
[1722411092685,3.55417,3328.7,3328.1,35.0]
[1722411093415,5.3505,3328.3,3327.4,5.45544]
[1722411093700,5.3505,3328.3,3327.3,0.3011]
[1722411093701,3.55463,3328.2,3327.5,38.00525]
[1722411093862,0.55,3328.2,3327.5,38.00525]
[1722411094064,0.55,3328.2,3327.6,3.00516]
[1722411094264,1.02726933,3328.2,3327.5,38.00525]
[1722411094459,0.55,3328.2,3327.6,3.00516]
[1722411094695,0.55,3328.2,3327.5,35.0]
[1722411094901,0.55,3328.2,3327.7,3.00506]
[1722411095100,2.3459,3328.3,3327.9,3.00488]
[1722411096508,2.3459,3328.3,3327.5,38.00524]
[1722411096695,0.55,3328.2,3327.5,38.00524]
[1722411096910,0.55,3328.2,3327.5,39.53593128]
[1722411097504,0.55,3328.2,3327.6,3.00515]
[1722411097892,0.55,3328.2,3327.7,3.00506]
[1722411098525,2.3459,3328.3,3327.9,3.00488]
[1722411098668,2.4206,3328.8,3327.8,3.06507452]
[1722411098872,2.4206,3328.8,3328.1,3.00465]
[1722411099618,2.4206,3328.8,3327.9,3.00487]
[1722411099619,2.4206,3328.8,3328.2,3.00462]
[1722411099913,2.4206,3328.8,3328.4,3.00444]
[1722411100267,2.4206,3328.8,3328.2,3.00462]
[1722411101693,2.4206,3328.8,3328.3,3.00453]
[1722411102183,5.60538726,3329.4,3328.5,3.00429]
[1722411102184,2.4385,3329.2,3328.5,3.00429]
[1722411102371,0.55,3329.1,3328.5,3.00429]
[1722411103107,0.55,3329.1,3328.3,3.00453]
[1722411103312,0.55,3329.1,3328.4,3.00442]
[1722411104431,3.55382,3329.1,3328.4,3.00442]
[1722411104640,4.153052,3329.1,3328.4,3.00442]
[1722411105131,4.153052,3329.1,3328.1,3.00469]
[1722411105132,3.00403,3328.9,3328.1,3.00469]
[1722411105332,0.55,3328.8,3328.1,3.00469]
[1722411105833,0.55,3328.8,3328.2,3.00456]
[1722411106037,0.55,3329.0,3328.2,3.00456]
[1722411106409,0.8837685,3329.0,3328.2,3.00456]
[1722411108522,3.00405,3328.9,3328.2,3.00456]
[1722411108706,0.55,3328.8,3328.2,3.00456]
[1722411108905,0.55,3328.8,3328.3,3.00449]
[1722411109215,3.004,3328.9,3328.1,3.00466]
[1722411109394,0.55,3328.8,3328.1,3.00466]
[1722411110133,3.55409,3328.8,3328.2,35.0]
[1722411110836,3.55409,3328.8,3328.2,38.00462]
[1722411110837,0.55,3328.8,3328.2,38.00462]
[1722411111174,3.55402,3328.9,3328.2,38.00462]
[1722411111339,2.4923,3328.8,3328.2,38.00462]
[1722411111841,5.49638,3328.8,3328.2,35.0]
[1722411113404,2.4923,3328.8,3328.2,35.0]
[1722411113841,2.4923,3328.8,3328.2,38.00461]
[1722411114453,5.49638,3328.8,3328.2,35.0]
[1722411114633,0.604631,3328.7,3328.2,35.0]
[1722411114975,5.49638,3328.8,3328.2,35.0]
[1722411117015,2.4923,3328.8,3328.2,35.0]
[1722411118051,5.49638,3328.8,3328.2,35.0]
[1722411118733,3.5542,3328.7,3327.9,3.00486]
[1722411118913,4.15885,3328.7,3327.9,3.00486]
[1722411119115,4.15885,3328.7,3328.0,38.00479]
[1722411119817,4.15885,3328.7,3328.0,35.0]
[1722411120035,3.00427,3328.6,3328.0,35.0]
[1722411120234,3.00427,3328.6,3327.5,3.00519]
[1722411120235,5.4311,3328.4,3327.5,3.00519]
[1722411120436,5.4311,3328.4,3327.6,3.0051]
[1722411120665,0.55,3328.3,3327.7,35.0]
[1722411120841,3.55454,3328.3,3327.7,35.0]
[1722411121217,0.55,3328.3,3327.7,35.0]
[1722411121638,2.4266,3328.4,3327.7,35.0]
[1722411121835,2.4266,3328.4,3327.9,3.00489]
[1722411122243,2.4266,3328.4,3328.0,3.00479]
[1722411122965,5.27989,3328.7,3328.0,3.00479]
[1722411123168,2.2757,3328.7,3328.0,3.00479]
[1722411123325,2.2757,3328.7,3328.2,3.00462]
[1722411123528,2.2757,3328.7,3328.0,3.00479]
[1722411123838,2.2757,3328.7,3328.1,3.00471]
[1722411126525,2.2757,3328.7,3327.9,38.00482]
[1722411126725,2.2757,3328.7,3328.0,3.00478]
[1722411127223,3.00431,3328.6,3327.9,35.0]
[1722411127798,3.06421332,3328.7,3328.0,3.0048]
[1722411127931,3.00432,3328.6,3327.8,3.00497]
[1722411128130,0.55,3328.5,3327.8,3.00497]
[1722411128569,2.3643,3328.4,3327.6,3.0051]
[1722411128869,6.02129503,3328.4,3327.7,3.00506]
[1722411131270,6.02129503,3328.4,3327.6,38.00514]
[1722411132958,6.02129503,3328.4,3327.7,3.00506]
[1722411133159,5.36875,3328.4,3327.7,3.00506]
[1722411133599,5.36875,3328.4,3327.6,39.11315]
[1722411134575,5.36875,3328.4,3327.6,38.00515]
[1722411134763,5.36875,3328.4,3327.6,39.11315]
[1722411134964,3.00453,3328.3,3327.6,39.11315]
[1722411135599,4.9730022,3328.4,3327.7,3.00507]
[1722411135600,2.3643,3328.4,3327.7,3.00507]
[1722411135807,5.4525,3328.3,3327.6,35.0]
[1722411135998,5.4525,3328.3,3327.6,36.108]
[1722411136592,5.4525,3328.3,3327.6,39.11314]
[1722411137483,2.4479,3328.3,3327.6,39.11314]
[1722411137689,2.4479,3328.3,3327.7,3.00507]
[1722411139920,2.4479,3328.3,3327.7,4.11307]
[1722411140624,3.15895551,3328.5,3327.7,4.11307]
[1722411140625,3.15895551,3328.5,3327.9,4.11287]
[1722411140999,3.15895551,3328.5,3327.9,1.108]
[1722411141000,6.16331551,3328.5,3327.9,1.108]
[1722411141181,6.16331551,3328.5,3328.0,35.0]
[1722411141699,2.4975,3328.2,3327.7,1.108]
[1722411142428,2.4975,3328.2,3327.8,35.0]
[1722411142639,3.554913,3328.1,3327.3,3.0054]
[1722411142784,3.554913,3328.1,3327.4,1.108]
[1722411143222,3.554913,3328.1,3327.5,35.0]
[1722411143934,3.554913,3328.1,3326.8,2.53170664]
[1722411143935,3.0049,3327.9,3327.3,1.108]
[1722411144283,1.1552413,3328.0,3327.5,1.108]
[1722411144284,4.1600513,3328.0,3327.5,1.108]
[1722411144489,4.1600513,3328.0,3327.3,38.00542]
[1722411144899,4.1600513,3328.0,3327.4,1.108]
[1722411145876,3.34298493,3327.9,3327.4,1.108]
[1722411146374,3.34298493,3327.9,3327.3,35.0]
[1722411147276,2.2743,3327.7,3326.2,2.3361]
[1722411147477,3.55522,3327.6,3326.8,3.00582]
[1722411147777,0.55,3327.6,3326.9,3.00573]
[1722411148073,3.55517,3327.6,3326.9,3.00573]
[1722411148281,3.00526,3327.5,3326.7,38.00591]
[1722411148582,3.55535,3327.4,3326.7,38.00591]
[1722411148736,2.4507,3327.3,3326.7,38.00591]
[1722411149673,2.3792,3327.6,3327.2,1.108]
[1722411150188,5.38438,3327.6,3327.0,0.0601078]
[1722411150356,0.78792,3327.5,3326.6,3.00604]
[1722411150558,3.7932,3327.5,3326.6,3.00604]
[1722411151091,2.283,3327.4,3326.6,3.00604]
[1722411151258,3.00544,3327.3,3326.5,36.108]
[1722411151646,2.283,3327.4,3326.5,36.108]
[1722411151647,2.283,3327.4,3326.6,3.00604]
[1722411151849,5.28835,3327.4,3326.7,3.00597]
[1722411152052,3.00544,3327.3,3326.5,42.16311288]
[1722411152484,0.55,3327.2,3326.2,6.0064]
[1722411152688,0.55,3327.2,3326.5,1.108]
[1722411152893,3.55559,3327.2,3326.5,1.108]
[1722411153193,3.00562,3327.1,3326.5,1.108]
[1722411153495,0.55,3327.0,3326.5,4.11413]
[1722411153652,0.55,3327.2,3326.5,4.11413]
[1722411153860,0.55,3327.2,3326.3,38.00627]
[1722411154106,3.5555,3327.3,3326.5,3.00616]
[1722411154392,3.00553,3327.2,3326.5,3.00616]
[1722411154596,0.55,3327.1,3326.5,3.00616]
[1722411155297,0.55,3327.1,3326.4,1.108]
[1722411155480,0.55,3327.1,3326.4,7.11424]
[1722411156499,3.55564,3327.1,3326.4,7.11424]
[1722411156867,3.911204,3327.1,3326.4,7.11424]
[1722411157079,2.446,3327.0,3326.4,7.11424]
[1722411157281,5.45171,3327.0,3326.3,38.00633]
[1722411157594,0.55,3326.9,3326.3,38.00633]
[1722411158196,2.446,3327.0,3326.4,4.11425]
[1722411158598,2.446,3327.0,3326.3,35.0]
[1722411158895,5.45171,3327.0,3326.3,35.0]
[1722411159255,3.55582,3326.9,3326.3,35.0]
[1722411159454,4.156002,3326.9,3326.3,35.0]
[1722411159675,4.156002,3326.9,3326.2,3.00643]
[1722411159870,1.150182,3326.9,3326.2,3.00643]
[1722411160098,1.150182,3326.9,3326.2,38.00643]
[1722411160529,1.150182,3326.9,3325.9,3.00665]
[1722411160734,3.006,3326.7,3326.0,3.0066]
[1722411160941,0.55,3326.6,3326.0,3.0066]
[1722411161091,2.4244,3326.8,3326.1,39.11447]
[1722411161435,0.55,3326.7,3326.2,3.00642]
[1722411161635,2.3432,3327.1,3326.5,1.108]
[1722411161833,0.55,3327.0,3326.5,1.108]
[1722411162128,0.55,3327.0,3326.6,35.0]
[1722411162532,3.55573,3327.0,3326.6,35.0]
[1722411162842,4.446166,3327.0,3326.6,35.0]
[1722411163602,3.00581,3326.9,3326.2,3.00642]
[1722411164001,3.00581,3326.9,3326.1,1.108]
[1722411164209,3.00581,3326.9,3326.1,4.1145]
[1722411164641,3.00589,3326.8,3326.1,4.1145]
[1722411164806,5.82239,3326.7,3326.0,35.0]
[1722411165134,5.82239,3326.7,3326.0,36.108]
[1722411165135,3.00608,3326.6,3326.0,36.108]
[1722411165502,2.8164,3326.7,3326.0,36.108]
[1722411165704,6.55197732,3326.7,3326.0,36.108]
[1722411165944,3.00616,3326.5,3326.0,35.0]